bitfinex/quotes_BTCUSD_20250513
["timestamp","ask_amount","ask_price","bid_price","bid_amount"]
[1747097782031,0.24375408,102350.0,102340.0,0.33796142]
[1747097782187,0.24375408,102350.0,102340.0,0.35750363]
[1747097782407,0.24375408,102350.0,102340.0,0.37704546]
[1747097782615,0.24375408,102350.0,102340.0,0.37704498]
[1747097783728,0.02880558,102350.0,102340.0,0.37704498]
[1747097784011,0.02880558,102350.0,102340.0,0.63650205]
[1747097784204,0.03857578,102350.0,102340.0,0.63650205]
[1747097784495,0.03857578,102350.0,102340.0,1.03650205]
[1747097784659,0.03857568,102350.0,102340.0,1.03650205]
[1747097785039,0.03857568,102350.0,102340.0,0.94250469]
[1747097785241,0.04834588,102350.0,102340.0,0.77704451]
[1747097787418,0.04834588,102350.0,102340.0,0.37704451]
[1747097787822,0.04834588,102350.0,102340.0,0.77704451]
[1747097788308,0.03857568,102350.0,102340.0,0.77704451]
[1747097788515,0.02880558,102350.0,102340.0,1.06597881]
[1747097788717,0.03857568,102350.0,102340.0,1.06597881]
[1747097790439,0.04834588,102350.0,102340.0,1.06597881]
[1747097790760,0.04834588,102350.0,102340.0,0.97012451]
[1747097792771,0.03857568,102350.0,102340.0,0.97012424]
[1747097793196,0.02880558,102350.0,102340.0,0.77704424]
[1747097793401,0.00926595,102350.0,102340.0,1.36914976]
[1747097793597,0.00926595,102350.0,102340.0,1.49285426]
[1747097793806,0.02930477,102370.0,102360.0,0.24502703]
[1747097794020,0.2246745,102370.0,102360.0,0.59298685]
[1747097794222,0.2246745,102370.0,102360.0,0.60886431]
[1747097794394,0.22959487,102380.0,102370.0,0.21490602]
[1747097794609,0.22959487,102380.0,102370.0,0.20513821]
[1747097794813,0.22959487,102380.0,102370.0,0.2210151]
[1747097795411,0.21982772,102380.0,102370.0,0.21124681]
[1747097795611,0.21054794,102380.0,102370.0,0.2307833]
[1747097795815,0.21054794,102380.0,102370.0,0.2210152]
[1747097796237,0.21054794,102380.0,102370.0,0.23078349]
[1747097796658,0.21054794,102380.0,102370.0,0.24055169]
[1747097797058,0.26054794,102380.0,102370.0,0.23078349]
[1747097797288,0.26054794,102380.0,102370.0,0.2210152]
[1747097797493,0.26054794,102380.0,102370.0,0.21124681]
[1747097797663,0.26985731,102380.0,102370.0,0.21124681]
[1747097798028,0.26985731,102380.0,102370.0,0.01587708]
[1747097798581,0.26985731,102380.0,102370.0,0.0061086]
[1747097811288,0.25514767,102380.0,102370.0,0.0061086]
[1747097816193,0.25514767,102380.0,102370.0,0.0384086]
[1747097819681,0.25514767,102380.0,102370.0,0.23377833]
[1747097819879,0.25514767,102380.0,102370.0,0.0384086]
[1747097820535,0.05979702,102380.0,102370.0,0.35893693]
[1747097820803,0.28444978,102380.0,102370.0,0.33940102]
[1747097821018,0.27468263,102380.0,102370.0,0.1342629]
[1747097821227,0.27468263,102380.0,102370.0,0.1179629]
[1747097821437,0.27468263,102380.0,102370.0,0.0221086]
[1747097821651,0.27468263,102380.0,102370.0,0.0061086]
[1747097828200,0.22468263,102380.0,102370.0,0.0061086]
[1747097833039,1.11780081,102380.0,102370.0,0.0061086]
[1747097833255,1.33420221,102380.0,102370.0,0.0061086]
[1747097833469,1.34420221,102380.0,102370.0,0.0061086]
[1747097833679,1.34420221,102380.0,102330.0,0.0326]
[1747097833680,0.21494802,102350.0,102340.0,0.0061086]
[1747097833934,0.20519815,102340.0,102330.0,0.0326]
[1747097834112,0.21496921,102340.0,102330.0,0.3434449]
[1747097834312,0.21496921,102340.0,102330.0,0.34955451]
[1747097834549,0.22272717,102340.0,102330.0,0.34955451]
[1747097834766,0.01752883,102340.0,102330.0,0.53447715]
[1747097835189,0.03707123,102340.0,102330.0,0.35941522]
[1747097835399,0.24226958,102340.0,102330.0,0.36918733]
[1747097835577,0.23249871,102340.0,102330.0,0.36932032]
[1747097835875,0.03707171,102340.0,102330.0,0.38886387]
[1747097836010,0.23249871,102340.0,102330.0,0.54447133]
[1747097836793,0.22272756,102340.0,102330.0,0.53469941]
[1747097837343,0.22272756,102340.0,102330.0,0.37909233]
[1747097838205,0.22272756,102340.0,102330.0,0.37909202]
[1747097838822,0.02730017,102340.0,102330.0,0.38886327]
[1747097839027,0.03707152,102340.0,102330.0,0.38886327]
[1747097839248,0.03707152,102340.0,102330.0,0.37909164]
[1747097839531,0.23249852,102340.0,102330.0,0.37909164]
[1747097839736,0.22272756,102340.0,102330.0,0.36931972]
[1747097839955,0.21295631,102340.0,102330.0,0.00619809]
[1747097840172,0.20318496,102340.0,102330.0,0.00619809]
[1747097840380,0.20318496,102340.0,102330.0,8.879e-05]
[1747097851521,0.36856405,102340.0,102330.0,8.879e-05]
[1747097851730,0.38436405,102340.0,102330.0,8.879e-05]
[1747097851940,0.40096405,102340.0,102330.0,8.879e-05]
[1747097852159,0.56634314,102340.0,102330.0,8.879e-05]
[1747097852370,1.20845829,102340.0,102330.0,8.879e-05]
[1747097852793,1.21845829,102340.0,102330.0,8.879e-05]
[1747097854237,1.03853835,102340.0,102330.0,8.879e-05]
[1747097857690,1.20391744,102340.0,102330.0,8.879e-05]
[1747097859582,1.81845829,102340.0,102330.0,8.879e-05]
[1747097861275,2.00255615,102340.0,102330.0,8.879e-05]
[1747097861726,1.99255615,102340.0,102330.0,8.879e-05]
[1747097862138,1.69255615,102340.0,102330.0,8.879e-05]
[1747097862987,1.44012813,102340.0,102330.0,8.879e-05]
[1747097863199,1.74012813,102340.0,102330.0,8.879e-05]
[1747097863411,1.48770011,102340.0,102330.0,8.879e-05]
[1747097863640,1.74012813,102340.0,102330.0,8.879e-05]
[1747097868700,1.99255615,102340.0,102330.0,8.879e-05]
[1747097868903,2.01974663,102340.0,102330.0,8.879e-05]
[1747097869563,1.70974663,102340.0,102330.0,8.879e-05]
[1747097870112,0.21505308,102300.0,102290.0,0.03788123]
[1747097870320,0.6606011,102300.0,102290.0,0.0380279]
[1747097870522,0.66807119,102300.0,102290.0,0.0380279]
[1747097871180,0.41564317,102300.0,102290.0,0.0380279]
[1747097871985,0.43036088,102300.0,102290.0,0.0380279]
[1747097872628,0.23724088,102300.0,102290.0,0.0380279]
[1747097872791,0.40574848,102300.0,102290.0,0.0380279]
[1747097873176,0.40574848,102300.0,102290.0,0.05391608]
[1747097873381,0.39597351,102300.0,102290.0,0.04414005]
[1747097876489,0.00747009,102300.0,102290.0,0.25921454]
[1747097876713,0.24207264,102300.0,102290.0,0.6172726]
[1747097876916,0.24207264,102300.0,102290.0,0.36484458]
[1747097877937,0.23229824,102300.0,102290.0,0.35506884]
[1747097878150,0.21274858,102300.0,102290.0,0.13999435]
[1747097879070,0.21274858,102300.0,102290.0,0.14977047]
[1747097879438,0.00747009,102300.0,102290.0,0.345293]
[1747097879648,0.01954508,102320.0,102310.0,0.02932149]
[1747097879850,0.02931795,102320.0,102310.0,0.2576058]
[1747097880163,0.02931795,102320.0,102310.0,0.26371795]
[1747097880366,0.01954508,102320.0,102310.0,0.35957225]
[1747097880788,0.01954374,102330.0,102320.0,0.25758411]
[1747097880985,0.01954135,102340.0,102330.0,0.22474936]
[1747097881189,0.22473998,102340.0,102330.0,0.21131777]
[1747097881396,0.22473998,102340.0,102330.0,0.22108997]
[1747097881706,0.21496921,102340.0,102330.0,0.24411777]
[1747097882296,0.21496921,102340.0,102330.0,0.24426444]
[1747097883083,0.20519825,102340.0,102330.0,0.24426444]
[1747097884168,0.20519825,102340.0,102330.0,0.25403664]
[1747097884329,0.20519825,102340.0,102330.0,0.24426444]
[1747097885729,0.01954164,102340.0,102330.0,0.52600821]
[1747097885870,0.03908404,102340.0,102330.0,0.51623658]
[1747097886083,0.21194049,102350.0,102340.0,0.23679825]
[1747097886284,0.4073484,102350.0,102340.0,0.0316]
[1747097886490,0.43729121,102350.0,102340.0,0.0316]
[1747097886685,0.4073484,102350.0,102340.0,0.0316]
[1747097887564,0.41358908,102350.0,102340.0,0.0316]
[1747097901020,0.22118908,102350.0,102340.0,0.0316]
[1747097906682,0.22118908,102350.0,102340.0,0.03770936]
[1747097907523,0.41294908,102350.0,102340.0,0.03770936]
[1747097910677,0.41294908,102350.0,102340.0,0.00610936]
[1747097911703,0.41294908,102350.0,102340.0,0.03760936]
[1747097914098,0.41294908,102350.0,102340.0,0.02250936]
[1747097914867,0.41294908,102350.0,102340.0,0.03850936]
[1747097922847,0.41294908,102350.0,102340.0,0.03850954]
[1747097926393,0.41294908,102350.0,102340.0,0.00610954]
[1747097926853,0.41294908,102350.0,102340.0,0.02120954]
[1747097927090,0.41294908,102350.0,102340.0,0.03660954]
[1747097930550,0.41294908,102350.0,102340.0,0.00610954]
[1747097930749,0.57842194,102350.0,102340.0,0.00610954]
[1747097930931,0.59352194,102350.0,102340.0,0.00610954]
[1747097931330,0.57842194,102350.0,102340.0,0.00610954]
[1747097931866,0.41294908,102350.0,102340.0,0.00610954]
[1747097932687,0.20519815,102340.0,102330.0,0.03214667]
[1747097933124,0.21156508,102340.0,102330.0,0.03825681]
[1747097938597,0.21156508,102340.0,102330.0,0.00625681]
[1747097939086,0.21156508,102340.0,102330.0,0.03875681]
[1747097941184,0.40853794,102340.0,102330.0,0.00625681]
[1747097941391,1.04853794,102340.0,102330.0,0.00625681]
[1747097941593,1.14439224,102340.0,102330.0,0.00014667]
[1747097942385,0.97891938,102340.0,102330.0,0.00014667]
[1747097942589,1.3098651,102340.0,102330.0,0.00014667]
[1747097942793,1.32440595,102340.0,102330.0,0.00014667]
[1747097943809,1.35169777,102340.0,102330.0,0.00014667]
[1747097944019,1.06169777,102340.0,102330.0,0.00014667]
[1747097944249,1.37169777,102340.0,102330.0,0.00014667]
[1747097947505,1.34440595,102340.0,102330.0,0.00014667]
[1747097949674,2.02760595,102340.0,102330.0,0.00014667]
[1747097950689,2.01760595,102340.0,102330.0,0.00014667]
[1747097950894,1.83663309,102340.0,102330.0,0.00014667]
[1747097951097,2.22003309,102340.0,102330.0,0.00014667]
[1747097951275,2.38550595,102340.0,102330.0,0.00014667]
[1747097954093,1.82233938,102340.0,102330.0,0.03144667]
[1747097954248,2.01401938,102340.0,102330.0,0.03144667]
[1747097954576,2.17949224,102340.0,102330.0,0.03144667]
[1747097955656,2.17949224,102340.0,102330.0,0.01514667]
[1747097957082,2.17949224,102340.0,102330.0,0.00014667]
[1747097959374,2.3609651,102340.0,102330.0,0.00014667]
[1747097959914,2.17949224,102340.0,102330.0,0.00014667]
[1747097960123,2.17949224,102340.0,102330.0,0.03074667]
[1747097961571,2.3613651,102340.0,102330.0,0.00014667]
[1747097961984,2.3775651,102340.0,102330.0,0.00014667]
[1747097962802,2.39210595,102340.0,102330.0,0.00014667]
[1747097963985,2.56757881,102340.0,102330.0,0.00014667]
[1747097964203,2.59478716,102340.0,102330.0,0.00014667]
[1747097964641,2.4293143,102340.0,102330.0,0.00014667]
[1747097965175,2.59478716,102340.0,102330.0,0.00014667]
[1747097965735,1.90158716,102340.0,102330.0,0.00014667]
[1747097967398,1.91006518,102340.0,102330.0,0.00014667]
[1747097967835,2.01296518,102340.0,102330.0,0.00014667]
[1747097968058,1.91006518,102340.0,102330.0,0.00014667]
[1747097977649,1.52666518,102340.0,102330.0,0.00014667]
[1747097977918,1.90994518,102340.0,102330.0,0.00014667]
[1747097978140,2.01284518,102340.0,102330.0,0.00014667]
[1747097978349,1.90994518,102340.0,102330.0,0.00014667]
[1747097982451,0.52955189,102320.0,102280.0,0.45776578]
[1747097982703,0.21479622,102290.0,102280.0,0.46275244]
[1747097982921,0.21479622,102290.0,102280.0,0.21030414]
[1747097983196,0.21111276,102290.0,102280.0,0.23222716]
[1747097983378,0.21111276,102290.0,102280.0,0.03668666]
[1747097983749,0.21111276,102290.0,102280.0,0.11707924]
[1747097983949,0.21111276,102290.0,102280.0,0.03668666]
[1747097984150,0.21111276,102290.0,102280.0,0.23222831]
[1747097984591,0.21111276,102290.0,102280.0,0.03668666]
[1747097985207,0.22581199,102290.0,102280.0,0.03668666]
[1747097985651,0.21111276,102290.0,102280.0,0.03668666]
[1747097989801,0.21111276,102290.0,102280.0,0.26619202]
[1747097989975,0.21111276,102290.0,102280.0,0.20234504]
[1747097990199,0.21111276,102290.0,102280.0,0.03668666]
[1747097993961,0.00609228,102290.0,102280.0,0.69068481]
[1747097994175,0.00977526,102290.0,102280.0,0.68872946]
[1747097994333,0.02932444,102300.0,102290.0,0.2465741]
[1747097994545,0.02932444,102300.0,102290.0,0.42200793]
[1747097994748,0.23460303,102300.0,102290.0,0.41223248]
[1747097995206,0.23460303,102300.0,102290.0,0.4170725]
[1747097995429,0.22482844,102300.0,102290.0,0.41707269]
[1747097995637,0.21505356,102300.0,102290.0,0.41707269]
[1747097996534,0.00977488,102300.0,102290.0,0.43762369]
[1747097996772,0.01954909,102300.0,102290.0,0.53347799]
[1747097997374,0.02932397,102300.0,102290.0,0.53347799]
[1747097997836,0.40665143,102320.0,102310.0,0.21503226]
[1747097998040,0.40665143,102320.0,102310.0,0.40341681]
[1747097998041,0.21501143,102320.0,102310.0,0.40341681]
[1747097998425,0.21501143,102320.0,102310.0,0.47303292]
[1747097998587,0.21501143,102320.0,102310.0,0.41319092]
[1747097998972,0.1954652,102320.0,102310.0,0.4034169]
[1747098000212,0.1954652,102320.0,102310.0,0.23775852]
[1747098000420,0.1954652,102320.0,102310.0,0.22798431]
[1747098001588,0.1954652,102320.0,102310.0,0.0325]
[1747098001797,0.1954652,102320.0,102310.0,0.04226812]
[1747098001958,0.1954652,102320.0,102310.0,0.05204233]
[1747098002362,0.21501143,102320.0,102310.0,0.43273316]
[1747098002643,0.20523846,102320.0,102310.0,0.42295914]
[1747098002769,0.20523846,102320.0,102310.0,0.41318502]
[1747098002975,0.20523846,102320.0,102310.0,0.25730056]
[1747098003175,0.03909197,102320.0,102310.0,0.49433378]
[1747098003385,0.22478449,102320.0,102310.0,0.43053267]
[1747098003608,0.00977249,102320.0,102310.0,0.5263864]
[1747098003773,0.02931776,102320.0,102310.0,0.5263864]
[1747098003975,0.03909082,102320.0,102310.0,0.5263864]
[1747098004690,0.00977182,102330.0,102320.0,0.22478382]
[1747098004881,0.20978151,102340.0,102330.0,0.2052184]
[1747098005081,0.20978151,102340.0,102330.0,0.2149906]
[1747098005307,0.21496921,102340.0,102330.0,0.43159291]
[1747098005916,0.01954221,102340.0,102330.0,0.52161362]
[1747098006118,0.01954221,102340.0,102330.0,0.44136406]
[1747098006472,0.21496921,102340.0,102330.0,0.41204869]
[1747098007032,0.21496921,102340.0,102330.0,0.19705838]
[1747098007234,0.21496921,102340.0,102330.0,0.0314]
[1747098007607,0.21496921,102340.0,102330.0,0.0411723]
[1747098008035,0.21496921,102340.0,102330.0,0.2463906]
[1747098008230,0.20522944,102350.0,102340.0,0.24656921]
[1747098008443,0.20522944,102350.0,102340.0,0.51829583]
[1747098008444,0.02931012,102350.0,102340.0,0.51829583]
[1747098008646,0.03908051,102350.0,102340.0,0.51829583]
[1747098009021,0.02931012,102350.0,102340.0,0.51829583]
[1747098009240,0.03907946,102350.0,102340.0,0.61415013]
[1747098009443,0.03907946,102350.0,102340.0,0.67009448]
[1747098009805,0.02930926,102350.0,102340.0,0.67009448]
[1747098009914,0.01953916,102350.0,102340.0,0.67009448]
[1747098010119,0.02930898,102350.0,102340.0,0.67009448]
[1747098010566,0.03907899,102350.0,102340.0,0.67009448]
[1747098010979,0.04884929,102350.0,102340.0,0.61415013]
[1747098011504,0.04884919,102350.0,102340.0,0.61415013]
[1747098012122,0.04884996,102350.0,102340.0,0.61415013]
[1747098012908,0.04885072,102350.0,102340.0,0.61415013]
[1747098013862,0.03908033,102350.0,102340.0,0.61415013]
[1747098014066,0.02931003,102350.0,102340.0,0.71000443]
[1747098014748,0.03908033,102350.0,102340.0,0.71000443]
[1747098014913,0.03908033,102350.0,102340.0,0.623921]
[1747098015120,0.02931003,102350.0,102340.0,0.623921]
[1747098016805,0.03908033,102350.0,102340.0,0.623921]
[1747098017813,0.04443026,102350.0,102340.0,0.623921]
[1747098018991,0.23983817,102350.0,102340.0,0.61415032]
[1747098019198,0.23006835,102350.0,102340.0,0.60437945]
[1747098019359,0.23006835,102350.0,102340.0,0.59460849]
[1747098019564,0.22029834,102350.0,102340.0,0.34242351]
[1747098020286,0.22029834,102350.0,102340.0,0.35219447]
[1747098021801,0.22029834,102350.0,102340.0,0.33265245]
[1747098022051,0.22029834,102350.0,102340.0,0.34242351]
[1747098022256,0.22029834,102350.0,102340.0,0.35219447]
[1747098022461,0.22029834,102350.0,102340.0,0.36196534]
[1747098023052,0.22029834,102350.0,102340.0,0.61415032]
[1747098024451,0.02489043,102350.0,102340.0,0.623921]
[1747098025382,0.02489043,102350.0,102340.0,0.7197753]
[1747098025831,0.00534993,102350.0,102340.0,0.963921]
[1747098026042,0.00534993,102350.0,102340.0,1.63064683]
[1747098026261,0.02930135,102380.0,102370.0,0.22467403]
[1747098026468,0.02978915,102380.0,102370.0,0.50925901]
[1747098026676,0.02978915,102380.0,102370.0,0.50925911]
[1747098027048,0.03955658,102380.0,102370.0,0.50925911]
[1747098027475,0.02978915,102380.0,102370.0,0.51902701]
[1747098027690,0.01025466,102380.0,102370.0,0.61488141]
[1747098027902,0.0004878,102380.0,102370.0,0.63454558]
[1747098030103,0.02002162,102380.0,102370.0,0.63454558]
[1747098030440,0.03955601,102380.0,102370.0,0.82582558]
[1747098032202,0.23490666,102380.0,102370.0,0.39033564]
[1747098032425,0.02930697,102360.0,102350.0,1.23907087]
[1747098032626,0.01953763,102360.0,102350.0,1.52616517]
[1747098032850,0.01953753,102360.0,102350.0,1.52616517]
[1747098033055,0.01953753,102360.0,102350.0,1.55766517]
[1747098033458,0.00976867,102360.0,102350.0,1.55766517]
[1747098033811,0.01953753,102360.0,102350.0,1.65351947]
[1747098034143,0.02419073,102360.0,102350.0,1.65351947]
[1747098034526,0.01953753,102360.0,102350.0,1.65351947]
[1747098034725,0.01953744,102360.0,102350.0,1.65351947]
[1747098035169,0.01953744,102360.0,102350.0,1.66327721]
[1747098035365,0.20515286,102370.0,102350.0,1.65350701]
[1747098035595,0.01953649,102370.0,102360.0,0.60423555]
[1747098035795,0.22514018,102380.0,102370.0,0.25617441]
[1747098036154,0.22514018,102380.0,102370.0,0.60421369]
[1747098036358,0.0004878,102380.0,102370.0,0.6139816]
[1747098036564,0.02002161,102380.0,102370.0,0.81498941]
[1747098037494,0.02978876,102380.0,102370.0,0.81498941]
[1747098038334,0.039556,102380.0,102370.0,0.81498941]
[1747098039242,0.039556,102380.0,102370.0,0.90015138]
[1747098039567,0.02978876,102380.0,102370.0,0.90015138]
[1747098040151,0.02978876,102380.0,102370.0,0.81498941]
[1747098041288,0.01025456,102380.0,102370.0,0.81498941]
[1747098041508,0.0004878,102380.0,102370.0,0.81498941]
[1747098042509,0.0004878,102380.0,102370.0,1.15498941]
[1747098044802,0.0004878,102380.0,102370.0,1.42171524]
[1747098045007,0.0004878,102380.0,102370.0,1.91756954]
[1747098045416,0.0004878,102380.0,102370.0,1.92256954]
[1747098045786,0.03905676,102410.0,102400.0,0.22460821]
[1747098046153,0.03920309,102410.0,102400.0,0.60504749]
[1747098046406,0.00014633,102410.0,102400.0,0.60504749]
[1747098046607,0.00014633,102410.0,102400.0,0.69020946]
[1747098046807,0.00991023,102410.0,102400.0,0.69020946]
[1747098047010,0.00014633,102410.0,102400.0,0.69020946]
[1747098047182,0.00991014,102410.0,102400.0,0.69020946]
[1747098047412,0.00014633,102410.0,102400.0,0.69020946]
[1747098047546,0.00991033,102410.0,102400.0,0.69020946]
[1747098047955,0.0294388,102410.0,102400.0,0.69020946]
[1747098048304,0.02943871,102410.0,102400.0,0.69020946]
[1747098048807,0.03920309,102410.0,102400.0,0.80541263]
[1747098049144,0.04398073,102410.0,102400.0,0.55322765]
[1747098049346,0.05374521,102410.0,102400.0,0.80541263]
[1747098050151,0.05374578,102410.0,102400.0,0.80541263]
[1747098050363,0.02445235,102410.0,102400.0,0.80541263]
[1747098050579,0.01468778,102410.0,102400.0,0.90126693]
[1747098050942,0.02445178,102410.0,102400.0,0.90126693]
[1747098051108,0.03421597,102410.0,102400.0,0.90126693]
[1747098051313,0.00492397,102410.0,102400.0,0.90126693]
[1747098054359,0.00492397,102410.0,102400.0,1.24126693]
[1747098054916,0.00492397,102410.0,102400.0,1.05006693]
[1747098055127,0.00492397,102410.0,102400.0,1.43230693]
[1747098055552,0.00492397,102410.0,102400.0,1.83230693]
[1747098059453,0.00492397,102410.0,102400.0,1.84684778]
[1747098060413,0.00492397,102410.0,102400.0,2.09903276]
[1747098060622,0.00492397,102410.0,102400.0,1.84684778]
[1747098061353,0.00492397,102410.0,102400.0,2.09903276]
[1747098064702,0.01952199,102440.0,102400.0,2.05997191]
[1747098064889,0.29963369,102450.0,102400.0,2.05997191]
[1747098064890,0.0786666,102450.0,102440.0,0.23428194]
[1747098065043,0.0788131,102450.0,102440.0,0.68416965]
[1747098066071,0.3033114,102450.0,102440.0,0.35780109]
[1747098066268,0.31439093,102450.0,102440.0,0.48209053]
[1747098066473,0.31439093,102450.0,102440.0,0.50161386]
[1747098066712,0.31439093,102450.0,102440.0,0.2868543]
[1747098066986,0.31439093,102450.0,102440.0,0.49185234]
[1747098067198,0.31439093,102450.0,102440.0,0.50161396]
[1747098067393,0.31439093,102450.0,102440.0,0.2868543]
[1747098067595,0.02928637,102430.0,102420.0,1.21380583]
[1747098067806,0.02928647,102430.0,102420.0,1.51042337]
[1747098068011,0.02928647,102430.0,102420.0,1.10358708]
[1747098068212,0.02928647,102430.0,102420.0,1.11335013]
[1747098068412,0.01952409,102430.0,102420.0,1.11335013]
[1747098068632,0.02928637,102430.0,102420.0,1.11335013]
[1747098068987,0.02928637,102430.0,102420.0,1.13314525]
[1747098069415,0.02928637,102430.0,102420.0,1.0840607]
[1747098069619,0.25744233,102430.0,102420.0,0.31065571]
[1747098069827,0.00976314,102420.0,102410.0,0.65793514]
[1747098070050,0.04881609,102420.0,102410.0,0.76355353]
[1747098070256,0.23432759,102420.0,102410.0,0.75378992]
[1747098070473,0.02928952,102420.0,102410.0,1.13339884]
[1747098070708,0.02928952,102420.0,102410.0,1.11331821]
[1747098071128,0.2459015,102420.0,102410.0,0.48210772]
[1747098071426,0.2459015,102420.0,102410.0,0.8318722]
[1747098072359,0.25014189,102420.0,102410.0,0.8318722]
[1747098072563,0.02376696,102420.0,102410.0,1.19943977]
[1747098072764,0.00424039,102420.0,102410.0,1.23173977]
[1747098072979,0.01400334,102420.0,102410.0,1.23173977]
[1747098073176,0.00424039,102420.0,102410.0,1.48392475]
[1747098073376,0.01952314,102440.0,102430.0,0.02928713]
[1747098073578,0.02376286,102440.0,102430.0,0.5725817]
[1747098073805,0.03352438,102440.0,102430.0,0.5725817]
[1747098074014,0.043286,102440.0,102430.0,0.5725817]
[1747098074284,0.043286,102440.0,102430.0,1.040736]
[1747098074285,0.00424039,102440.0,102430.0,1.040736]
[1747098074475,0.0001465,102450.0,102440.0,0.56452051]
[1747098074729,0.0001465,102450.0,102440.0,0.94485979]
[1747098075904,0.0099065,102450.0,102440.0,0.31061367]
[1747098076103,0.26036556,102450.0,102440.0,0.22452061]
[1747098076313,0.06514839,102450.0,102440.0,0.23428175]
[1747098076523,0.06514924,102450.0,102440.0,0.48646673]
[1747098076988,0.06514924,102450.0,102440.0,0.22452061]
[1747098077192,0.05538839,102450.0,102440.0,0.23428175]
[1747098077401,0.23440556,102450.0,102440.0,0.22452061]
[1747098077588,0.24416641,102450.0,102440.0,0.22452061]
[1747098077763,0.00976124,102440.0,102430.0,0.46696455]
[1747098077972,0.03904913,102430.0,102420.0,0.42555476]
[1747098078150,0.23430442,102430.0,102420.0,1.09406813]
[1747098078358,0.22454252,102430.0,102420.0,0.85164677]
[1747098078639,0.22454252,102430.0,102420.0,0.53117334]
[1747098078842,0.02928723,102430.0,102420.0,0.79312137]
[1747098078996,0.03904989,102430.0,102420.0,0.79312137]
[1747098079450,0.03904989,102430.0,102420.0,0.54093639]
[1747098079884,0.03904989,102430.0,102420.0,0.53117334]
[1747098080097,0.03904989,102430.0,102420.0,0.54093582]
[1747098081685,0.24406794,102430.0,102420.0,0.53117277]
[1747098081926,0.0195279,102410.0,102400.0,0.73603726]
[1747098082180,0.0195279,102410.0,102400.0,0.50165661]
[1747098082384,0.23435085,102410.0,102400.0,0.50165785]
[1747098082587,0.23435085,102410.0,102400.0,0.52118842]
[1747098083030,0.24965085,102410.0,102400.0,0.19096]
[1747098083245,0.21484298,102400.0,102390.0,0.5546906]
[1747098083451,0.20507793,102400.0,102390.0,0.66045752]
[1747098083656,0.20507793,102400.0,102390.0,0.33998981]
[1747098084071,0.20507793,102400.0,102390.0,0.30092485]
[1747098084317,0.1953125,102400.0,102390.0,0.09600063]
[1747098084521,0.1953125,102400.0,102390.0,0.32063144]
[1747098085282,0.02506448,102410.0,102400.0,0.20507783]
[1747098085496,0.41141807,102420.0,102410.0,0.2050579]
[1747098085662,0.41141807,102420.0,102410.0,0.46700707]
[1747098085663,0.22017047,102420.0,102410.0,0.46700707]
[1747098085866,0.20064305,102420.0,102410.0,0.47677107]
[1747098086076,0.01952629,102420.0,102410.0,0.57262537]
[1747098086373,0.03905352,102420.0,102410.0,0.56286137]
[1747098086920,0.03905352,102420.0,102410.0,0.31067639]
[1747098087968,0.23432788,102420.0,102410.0,0.31067639]
[1747098088371,0.22456483,102420.0,102410.0,0.31067658]
[1747098088572,0.22456483,102420.0,102410.0,0.32044087]
[1747098090600,0.22456483,102420.0,102390.0,0.58625525]
[1747098090601,0.2050671,102410.0,102390.0,0.58625525]
[1747098090769,0.01953019,102400.0,102390.0,0.85135546]
[1747098090973,0.02929543,102400.0,102390.0,0.51135546]
[1747098091215,0.02929533,102400.0,102390.0,0.85135546]
[1747098091411,0.02929533,102400.0,102390.0,0.66047546]
[1747098091611,0.23437345,102400.0,102390.0,0.52112241]
[1747098091937,0.23437345,102400.0,102390.0,0.53088851]
[1747098092144,0.03906076,102400.0,102390.0,0.54065442]
[1747098092610,0.04882638,102400.0,102390.0,0.53088851]
[1747098093050,0.21484355,102400.0,102390.0,0.00014633]
[1747098093475,0.21484355,102400.0,102390.0,0.1954779]
[1747098093678,0.21484355,102400.0,102390.0,0.20524438]
[1747098094021,0.21484355,102400.0,102390.0,0.21501076]
[1747098094220,0.21484355,102400.0,102390.0,0.22477705]
[1747098094864,0.19527436,102420.0,102400.0,0.1953125]
[1747098095063,0.19527436,102420.0,102410.0,0.20505809]
[1747098095270,0.01952657,102420.0,102410.0,0.48653544]
[1747098095466,0.02929009,102420.0,102410.0,0.48653544]
[1747098095672,0.019526,102420.0,102410.0,0.57262584]
[1747098095879,0.00976228,102430.0,102420.0,0.22456436]
[1747098096072,0.20499794,102440.0,102430.0,0.2245429]
[1747098096246,0.21475937,102440.0,102430.0,0.21478052]
[1747098096455,0.01952485,102430.0,102420.0,0.56284002]
[1747098097018,0.02928761,102430.0,102420.0,0.56284002]
[1747098097422,0.21121717,102450.0,102440.0,0.20499794]
[1747098097622,0.2147586,102440.0,102430.0,0.46696531]
[1747098097822,0.21475918,102440.0,102430.0,0.30087225]
[1747098098342,0.21475918,102440.0,102430.0,0.3203972]
[1747098098554,0.21475918,102440.0,102430.0,0.0958543]
[1747098098922,0.21475918,102440.0,102430.0,0.10561706]
[1747098099100,0.21475918,102440.0,102430.0,0.30087235]
[1747098099340,0.21475918,102440.0,102430.0,0.32039748]
[1747098099510,0.21475918,102440.0,102430.0,0.31063501]
[1747098099724,0.20499785,102440.0,102430.0,0.31063501]
[1747098100070,0.19523623,102440.0,102430.0,0.31063501]
[1747098100860,0.19523623,102440.0,102430.0,0.0958543]
[1747098102476,0.21480131,102420.0,102410.0,0.3563]
[1747098102653,0.21480131,102420.0,102410.0,0.4358543]
[1747098102854,0.2050579,102410.0,102400.0,0.19088]
[1747098103089,0.1953125,102400.0,102390.0,0.22129707]
[1747098103284,0.02929524,102400.0,102390.0,0.33668356]
[1747098103481,0.03906057,102400.0,102390.0,0.61383445]
[1747098103648,0.04882609,102400.0,102390.0,0.36164947]
[1747098104069,0.04882609,102400.0,102390.0,0.3617958]
[1747098105680,0.04882695,102400.0,102390.0,0.3617958]
[1747098105887,0.04882695,102400.0,102390.0,0.61398078]
[1747098107024,0.03906038,102400.0,102390.0,0.70983508]
[1747098107220,0.0488259,102400.0,102390.0,0.70983508]
[1747098108197,0.19527436,102420.0,102410.0,0.20505809]
[1747098108411,0.03905352,102420.0,102410.0,0.57262604]
[1747098108609,0.01952676,102420.0,102410.0,0.58239004]
[1747098108939,0.00976286,102420.0,102410.0,0.57262479]
[1747098109116,0.21478052,102430.0,102420.0,0.2148015]
[1747098109679,0.01952409,102430.0,102420.0,0.58236716]
[1747098109874,0.0097619,102430.0,102420.0,0.61356716]
[1747098110079,0.01952409,102430.0,102420.0,0.61356716]
[1747098110413,0.02652409,102430.0,102420.0,0.71042146]
[1747098110794,0.007,102430.0,102420.0,0.90130146]
[1747098111626,0.007,102430.0,102420.0,1.24130146]
[1747098111979,0.02928371,102440.0,102430.0,0.22454242]
[1747098112182,0.02928371,102440.0,102430.0,0.5725817]
[1747098112381,0.02928371,102440.0,102430.0,0.65774367]
[1747098112776,0.00976104,102440.0,102430.0,0.65774367]
[1747098113021,0.2147384,102450.0,102440.0,0.21475956]
[1747098113223,0.20512443,102450.0,102440.0,0.00976181]
[1747098113793,0.20499775,102440.0,102430.0,0.64898158]
[1747098114001,0.01952314,102440.0,102430.0,0.41632097]
[1747098114593,0.01952314,102440.0,102430.0,0.331159]
[1747098114939,0.2245208,102440.0,102430.0,0.32139691]
[1747098115167,0.23410682,102440.0,102430.0,0.32039691]
[1747098115360,0.03887059,102440.0,102430.0,0.32039691]
[1747098115577,0.04863173,102440.0,102430.0,0.330159]